fUSD/lending_fUSD_20241109
["ID","MTS","AMOUNT","RATE_DAILY","PERIOD"]
[341725178,1731147031823,-150.99,0.0002707,2]
[341725179,1731147031835,-200.0,0.00027117,2]
[341725180,1731147031845,-369.44,0.00027226,2]
[341725181,1731147031854,-167.56,0.00027467,2]
[341725182,1731147031864,-905.53,0.00027498,2]
[341725183,1731147031874,-250.0,0.00027513,2]
[341725184,1731147031884,-157.0,0.00027552,30]
[341725185,1731147031893,-250.0,0.00027565,2]
[341725186,1731147031904,-167.8,0.00027618,2]
[341725187,1731147031914,-770.56,0.00027767,2]
[341725188,1731147031925,-23900.0,0.00027854,2]
[341725189,1731147031935,-150.0,0.00027863,2]
[341725190,1731147031945,-152.44,0.00027872,2]
[341725191,1731147031954,-432.91,0.00027878,2]
[341725192,1731147031964,-710.07732,0.000279,2]
[341725193,1731147031973,-160.0,0.00027912,120]
[341725194,1731147031983,-905.53,0.00027926,2]
[341725195,1731147031992,-200.0,0.00027948,2]
[341725196,1731147032001,-150.54,0.00027978,2]
[341725197,1731147032011,-166.84,0.00028094,2]
[341725198,1731147032020,-1501.72538765,0.00028255,10]
[341725200,1731147032029,-905.53,0.00028354,2]
[341725202,1731147032038,-217.36,0.00028392,2]
[341725204,1731147032048,-216.98,0.00028393,2]
[341725206,1731147032057,-1305.1351,0.00028599,2]
[341725208,1731147032066,-5701.66099235,0.000286,2]
[341725211,1731147032086,-1093.94528111,0.000286,2]
[341725617,1731147037579,-664.04741008,0.000286,2]
[341725618,1731147037590,-585.097,0.000286,2]
[341725619,1731147037604,-310.24010705,0.000286,2]
[341725621,1731147037695,-91645.00920941,0.000286,2]
[341725622,1731147037704,-1000.0,0.000286,2]
[341725623,1731147037713,-2192.0,0.00028611,2]
[341725624,1731147037723,-432.91,0.00028654,2]
[341725625,1731147037732,-432.91,0.00028654,2]
[341725626,1731147037741,-181.89,0.00028654,2]
[341725627,1731147037751,-362.09,0.00028659,2]
[341725628,1731147037760,-501.2787905,0.00028673,5]
[341725629,1731147037770,-500.0,0.00028673,5]
[341725630,1731147037780,-502.11901539,0.00028673,5]
[341725631,1731147037789,-500.0,0.00028673,2]
[341725632,1731147037799,-361.03197952,0.0002869,2]
[341725633,1731147037808,-94035.7266,0.00028699,2]
[341725634,1731147037818,-1308.3613,0.00028699,2]
[341725635,1731147037830,-500.0,0.00028699,2]
[341725636,1731147037840,-500.0,0.00028699,2]
[341725637,1731147037850,-500.0,0.00028699,2]
[341725638,1731147037859,-500.0,0.00028699,2]
[341725639,1731147037870,-500.0,0.00028699,2]
[341725640,1731147037880,-500.0,0.00028699,2]
[341725641,1731147037890,-500.0,0.00028699,2]
[341725642,1731147037900,-599.55878383,0.00028699,2]
[341725643,1731147037910,-500.0,0.00028699,2]
[341725644,1731147037920,-500.0,0.00028699,2]
[341725645,1731147037930,-500.0,0.00028699,2]
[341725646,1731147037940,-500.0,0.00028699,2]
[341725647,1731147037949,-500.0,0.00028699,2]
[341725648,1731147037959,-350.0,0.00028699,2]
[341725649,1731147037968,-131.38436187,0.00028699,4]
[341725650,1731147037980,-32619.19205644,0.00028699,4]
[341725651,1731147038014,-1236.02375094,0.00028699,4]
[341725652,1731147038025,-2615.54359511,0.00028699,4]
[341725653,1731147038037,-3232.8021206,0.00028699,4]
[341725654,1731147038060,-1148.955,0.00028699,4]
[341725655,1731147038087,-537.13002854,0.00028699,4]
[341725838,1731147039988,-808.13249017,0.00028699,4]
[341726272,1731147045700,-211.99472335,0.000286,2]
[341726273,1731147045710,-1099.48412606,0.00028699,4]
[341726274,1731147045722,-1531.42,0.00028699,4]
[341726275,1731147045786,-6606.60574918,0.00028699,4]
[341726276,1731147045912,-3046.4,0.00028699,4]
[341726278,1731147138048,693.5,0.00025948,2]
[341726279,1731147182663,159.35,0.00015342,2]
[341726294,1731147602324,150.0,0.00015342,2]
[341726295,1731147602818,242.26094116,0.00015342,2]
[341726296,1731147617782,-152.6975,0.00020756,2]
[341726297,1731147617805,-450.0,0.00021,2]
[341726298,1731147617829,-500.0,0.00021173,2]
[341726299,1731147617851,-502.11901539,0.00021173,2]
[341726300,1731147617874,-500.0,0.00021173,2]
[341726301,1731147617896,-545.0,0.000212,2]
[341726302,1731147617920,-47350.18348461,0.000212,2]
[341726312,1731147777330,150.0,0.00018123,2]
[341726313,1731147807763,-618.5055,0.00020715,2]
[341726314,1731147807785,-2032.4945,0.00020988,2]
[341726315,1731147818716,245.79973683,0.00018123,2]
[341726316,1731147873722,-2014.984641,0.00021066,2]
[341726317,1731147873744,-500.0,0.00021173,2]
[341726318,1731147873765,-28607.015359,0.000212,2]
[341726319,1731147908336,34052.58932201,0.00016,2]
[341726320,1731147908360,35000.0,0.00016,2]
[341726321,1731147908382,10000.0,0.00016,2]
[341726322,1731147908407,532231.06082777,0.00016,2]
[341726323,1731147924654,3005.3919784,0.00027,120]
[341726325,1731147943139,-324.26839267,0.00021199,2]
[341726326,1731147943159,-4331.41318894,0.000212,2]
[341726327,1731147955280,6837.93578404,0.0001892,2]
[341726329,1731147963420,-33136.0,0.000212,2]
[341726330,1731147982175,195.25,0.00015342,2]
[341726332,1731148083064,58318.49261612,0.00015,2]
[341726333,1731148100546,499.999998,0.0002,2]
[341726335,1731148141600,276.0,0.00019725,2]
[341726336,1731148152090,-2056.45166357,0.00021,7]
[341726337,1731148152113,-903.19223311,0.000211,2]
[341726338,1731148152139,-70237.37440332,0.000212,2]
[341726339,1731148153104,-3024.721784,0.000212,2]
[341726340,1731148153136,-11251.90848613,0.000212,2]
[341726341,1731148153159,-164.89,0.00021431,2]
[341726342,1731148153182,-195.25,0.00021745,2]
[341726343,1731148153204,-500.0,0.00023,2]
[341726344,1731148153230,-752.85,0.00024585,2]
[341726345,1731148153251,-150.99,0.00024585,2]
[341726346,1731148153275,-1220.16,0.00024585,2]
[341726347,1731148153296,-499.99,0.00024585,2]
[341726348,1731148153318,-999.99,0.00024585,2]
[341726349,1731148153339,-6578.12,0.00024585,2]
[341726350,1731148153360,-550.0,0.00025,2]
[341726351,1731148153383,-5827.10444119,0.00025,2]
[341726352,1731148153405,-630.89815266,0.00026006,2]
[341726353,1731148153428,-166.96,0.00026133,2]
[341726354,1731148153449,-250.0,0.00026309,2]
[341726355,1731148162084,-157.0,0.00026569,30]
[341726356,1731148162105,-167.56,0.00026619,2]
[341726357,1731148162128,-300.0,0.00026654,2]
[341726358,1731148162153,-729.46,0.00026789,2]
[341726359,1731148162177,-164.89,0.00026789,2]
[341726360,1731148162202,-1730.15,0.00026794,2]
[341726361,1731148162228,-752.85,0.00026849,2]
[341726362,1731148162251,-837.34,0.00026866,2]
[341726386,1731148231793,-184.11,0.00027268,2]
[341726388,1731148231803,-837.34,0.00027297,2]
[341726389,1731148231814,-250.0,0.00027314,2]
[341726390,1731148231825,-301.1,0.00027429,2]
[341726391,1731148231836,-160.0,0.00027429,120]
[341726392,1731148231846,-292.65184743,0.00027557,2]
[341726393,1731148232033,-333.79755257,0.00027557,2]
[341726394,1731148232043,-127.92244743,0.00027624,2]
[341726395,1731148232055,-872.07755257,0.00027624,2]
[341726396,1731148232066,-305.5,0.00027631,120]
[341726397,1731148232076,-1960.43,0.00027678,2]
[341726398,1731148232086,-837.34,0.00027729,2]
[341726399,1731148232095,-487.58,0.00027837,2]
[341726400,1731148232105,-538.14,0.000279,2]
[341726401,1731148232115,-152.0,0.00027967,3]
[341726402,1731148232126,-195.25,0.00028147,2]
[341726403,1731148232136,-837.34,0.00028161,2]
[341726404,1731148232146,-233.63079485,0.0002828,2]
[341726405,1731148232159,-2374.86863483,0.0002828,2]
[341726406,1731148232170,-631.28,0.0002837,3]
[341726407,1731148232180,-500.0,0.00028379,2]
[341726408,1731148232189,-500.0,0.00028379,2]
[341726409,1731148232200,-522.46391824,0.0002838,4]
[341726410,1731148232210,-29619.83323361,0.0002838,2]
[341726416,1731148232265,-1837.76385173,0.0002838,2]
[341726422,1731148232485,-500.0,0.00028379,2]
[341726423,1731148232495,-24.7693386,0.0002838,2]
[341726431,1731148237908,-361.03197952,0.0002837,2]
[341726432,1731148237917,-333.97836838,0.00028379,2]
[341726433,1731148237927,-500.0,0.00028379,2]
[341726434,1731148237936,-500.0,0.00028379,2]
[341726435,1731148237946,-500.0,0.00028379,2]
[341726436,1731148237957,-500.0,0.00028379,2]
[341726437,1731148237967,-500.0,0.00028379,2]
[341726438,1731148237976,-500.0,0.00028379,2]
[341726439,1731148237985,-26750.78541005,0.0002838,4]
[341726440,1731148237998,-2548.34045345,0.0002838,4]
[341726441,1731148238116,-2020.0,0.0002838,4]
[341726442,1731148239747,-3063.52,0.0002838,4]
[341726443,1731148239838,-706.72000021,0.0002838,4]
[341726444,1731148240068,-1219.0,0.0002838,4]
[341726448,1731148243443,-393.82,0.0002837,3]
[341726449,1731148243458,-1750.25477656,0.0002838,4]
[341726450,1731148243679,-1493.3295,0.0002838,4]
[341726460,1731148246346,-0.3944459,0.0002838,4]
[341726461,1731148246359,-279037.30231424,0.0002838,4]
[341726462,1731148246369,-7496.34807513,0.0002838,2]
[341726463,1731148246379,-39312.35998271,0.0002838,2]
[341726464,1731148283489,771.0,0.000212,2]
[341726465,1731148345934,171.0,0.00025,2]
[341726469,1731148681398,300.0,0.00019725,2]
[341726470,1731148728788,156.03,0.00015342,2]
[341726471,1731148812648,150.0,0.00018123,2]
[341726472,1731148818815,155.07,0.00016712,2]
[341726473,1731148853708,150.0,0.00018123,2]
[341726474,1731148862003,300.0,0.00019725,2]
[341726475,1731148917678,459.6,0.00025569,120]
[341726477,1731149041397,300.0,0.00019725,2]
[341726478,1731149139140,-158.6606848,0.00021,2]
[341726479,1731149161335,300.0,0.00019725,2]
[341726481,1731149300499,245.840826,0.00018123,2]
[341726482,1731149341340,300.0,0.00019725,2]
[341726483,1731149348158,-569.721,0.00020573,2]
[341726484,1731149348180,-291.3393152,0.00021,2]
[341726485,1731149348205,-2495.910354,0.00021093,2]
[341726486,1731149348227,-164.89,0.00021193,2]
[341726487,1731149348248,-420.0,0.00021484,2]
[341726488,1731149348270,-500.0,0.00023,2]
[341726489,1731149348291,-587.0,0.00023401,2]
[341726490,1731149348313,-156.03,0.00024031,2]
[341726491,1731149348333,-150.99,0.00024121,2]
[341726492,1731149348356,-903.28,0.00024121,2]
[341726493,1731149348377,-178.25,0.00024171,2]
[341726494,1731149348399,-2585.52,0.00024828,2]
[341726495,1731149348420,-150.0,0.00024986,2]
[341726496,1731149348441,-550.0,0.00025,2]
[341726497,1731149348692,-2585.52,0.00025227,2]
[341726498,1731149348717,-178.25,0.00025443,2]
[341726499,1731149348742,-1000.0,0.00025507,2]
[341726500,1731149348764,-250.0,0.00025557,2]
[341726501,1731149348787,-2585.52,0.00025626,2]
[341726502,1731149348809,-250.0,0.0002565,2]
[341726503,1731149348830,-1120.58,0.00025727,2]
[341726504,1731149348851,-150.0,0.00025799,2]
[341726505,1731149348871,-378.5,0.00025884,2]
[341726506,1731149348893,-2585.52,0.00026025,2]
[341726507,1731149348914,-250.0,0.0002611,2]
[341726508,1731149348935,-500.0,0.000263,7]
[341726509,1731149348955,-500.0,0.000263,7]
[341726510,1731149357385,-6053.07090826,0.00026358,2]
[341726511,1731149358462,-2041.14909174,0.00026358,2]
[341726512,1731149358485,-903.28,0.00026385,2]
[341726513,1731149358508,-2585.52,0.00026423,2]
[341726514,1731149358529,-200.0,0.00026491,2]
[341726515,1731149358553,-178.25,0.00026715,2]
[341726516,1731149358576,-201.03,0.00026765,2]
[341726517,1731149382324,500.0,0.000263,7]
[341726520,1731149392726,7473.00111774,0.00026768,2]
[341726521,1731149400412,3702.27586441,0.000246,30]
[341726522,1731149401322,300.0,0.00019725,2]
[341726546,1731149432275,-1484.6,0.00026768,2]
[341726549,1731149432492,-973.51222965,0.00026768,2]
[341726552,1731149432504,-4521.08210656,0.00026768,2]
[341726565,1731149437995,-459.80631186,0.00026768,2]
[341726566,1731149438007,-8987.99823419,0.00026768,2]
[341726567,1731149438015,-200.0,0.00026768,2]
[341726568,1731149438024,-2585.52,0.00026822,2]
[341726570,1731149438033,-154.26,0.00026918,2]
[341726571,1731149438042,-261.04,0.00026941,2]
[341726572,1731149438051,-707.40304553,0.0002698,2]
[341726573,1731149438060,-1000.0,0.0002698,2]
[341726574,1731149438070,-157.47,0.00026987,30]
[341726575,1731149438079,-2971.72,0.00027,2]
[341726576,1731149438090,-759.0,0.00027,2]
[341726577,1731149438100,-600.0,0.00027,2]
[341726578,1731149438111,-2804.4343332,0.00027061,2]
[341726579,1731149438119,-378.5,0.00027179,2]
[341726580,1731149438130,-2585.52,0.00027221,2]
[341726581,1731149438140,-2804.43433316,0.00027392,2]
[341726582,1731149438150,-57135.17,0.00027397,2]
[341726583,1731149438159,-168.84,0.00027402,2]
[341726584,1731149438169,-427.88,0.00027441,2]
[341726585,1731149438178,-427.88,0.00027541,2]
[341726586,1731149438189,-400.0,0.000276,10]
[341726587,1731149438198,-2585.52,0.0002762,2]
[341726588,1731149438209,-362.09,0.00027678,2]
[341726589,1731149438219,-362.09,0.00027678,2]
[341726590,1731149438228,-338.84,0.00027678,2]
[341726591,1731149438237,-900.0,0.000277,10]
[341726592,1731149438248,-2192.0,0.00027717,2]
[341726593,1731149438259,-2804.43433316,0.00027722,2]
[341726594,1731149438270,-152.715171,0.00027742,2]
[341726595,1731149438279,-1400.0,0.000278,10]
[341726596,1731149438291,-167.24,0.00027817,2]
[341726597,1731149438300,-1900.0,0.000279,10]
[341726598,1731149438311,-762.33,0.000279,2]
[341726599,1731149438321,-762.33,0.000279,2]
[341726600,1731149438331,-186.31,0.000279,2]
[341726601,1731149438340,-500.0,0.00027944,7]
[341726602,1731149438349,-152.715171,0.00027947,2]
[341726603,1731149438360,-178.25,0.00027987,2]
[341726604,1731149438369,-1007.64,0.00028,2]
[341726605,1731149438379,-1750.0,0.00028,5]
[341726606,1731149438389,-2804.43433316,0.00028053,2]
[341726607,1731149438399,-204.42694545,0.0002818,2]
[341726608,1731149438410,-7500.0,0.00028278,2]
[341726609,1731149438420,-500.0,0.00028279,2]
[341726610,1731149438431,-500.0,0.00028279,2]
[341726611,1731149438440,-500.0,0.00028279,2]
[341726612,1731149438450,-500.0,0.00028279,2]
[341726613,1731149438459,-500.0,0.00028279,2]
[341726614,1731149438468,-500.0,0.00028279,2]
[341726615,1731149438478,-500.0,0.00028279,2]
[341726616,1731149438487,-500.0,0.00028279,2]
[341726617,1731149438497,-500.0,0.00028279,2]
[341726618,1731149438506,-583.78485787,0.00028279,2]
[341726619,1731149438516,-500.0,0.00028279,2]
[341726620,1731149438525,-500.0,0.00028279,2]
[341726621,1731149438535,-500.0,0.00028279,2]
[341726622,1731149438544,-500.0,0.00028279,2]
[341726623,1731149438556,-450.0,0.00028279,2]
[341726624,1731149438571,-1410.9259567,0.00028279,2]
[341726625,1731149438580,-500.0,0.0002828,2]
[341726626,1731149438590,-21274.97112369,0.0002828,2]
[341726627,1731149438602,-734.4403999,0.0002828,2]
[341726630,1731149438617,-15855.05827641,0.0002828,2]
[341726632,1731149438626,-1308.3613,0.0002828,2]
[341726634,1731149438635,-43059.1452,0.0002828,2]
[341726636,1731149438643,-10966.64131784,0.0002828,4]
[341726648,1731149438811,-12341.6015848,0.0002828,4]
[341726649,1731149440095,-465.4221792,0.0002828,4]
[341726654,1731149443602,-141977.49359636,0.0002828,4]
[341726655,1731149443611,-261.23195912,0.0002828,4]
[341726656,1731149443621,-54473.9466,0.0002828,2]
[341726657,1731149443630,-71172.4661641,0.0002828,2]
[341726658,1731149443781,-3044.6,0.0002828,2]
[341726659,1731149443805,-62.06752769,0.0002828,2]
[341726660,1731149443821,-4998.62378509,0.0002828,2]
[341726667,1731149446020,-748.89,0.0002828,2]
[341726668,1731149446033,-27602.8135,0.0002828,2]
[341726669,1731149446217,-1113.70970627,0.0002828,2]
[341726670,1731149446239,-524.98442595,0.0002828,2]
[341726671,1731149446251,-20885.7813912,0.0002828,2]
[341726672,1731149447486,1132.58365528,0.00026,2]
[341726673,1731149447514,9650.11297508,0.00026,2]
[341726674,1731149449007,1582.097,0.00020633,2]
[341726676,1731149662883,-517.0,0.000212,2]
[341726677,1731149809358,151.05,0.00015342,2]
[341726678,1731149810546,190.599,0.0002069,2]
[341726679,1731149895345,253.56684613,0.00020587,2]
[341726681,1731150002739,500.0,0.0001726,2]
[341726683,1731150346122,-500.0,0.00024973,2]
[341726684,1731150346143,-250.0,0.00024973,2]
[341726685,1731150346166,-2994.97029151,0.00025,2]
[341726686,1731150426114,-163.00438026,0.00024973,2]
[341726687,1731150449667,450.0,0.00021,2]
[341726689,1731150542755,463.68,0.00026328,120]
[341726690,1731150551133,-500.0,0.00023,2]
[341726691,1731150551173,-506.25159544,0.00024973,2]
[341726692,1731150551213,-322.86923773,0.00024973,2]
[341726693,1731150551259,-7005.02970849,0.00025,2]
[341726694,1731150551299,-10000.0,0.00025,2]
[341726695,1731150551340,-7675.40670727,0.00025,2]
[341726696,1731150554280,-2324.59329273,0.00025,2]
[341726697,1731150554303,-6127.68425762,0.00025,2]
[341726698,1731150557107,-3872.31574238,0.00025,2]
[341726699,1731150557129,-10000.0,0.00025,2]
[341726700,1731150557153,-198.09991762,0.00025,2]
[341726701,1731150561160,-6923.535164,0.00025,2]
[341726705,1731150564433,-2878.36491838,0.00025,2]
[341726706,1731150564455,-146.36019762,0.00025,2]
[341726710,1731150568197,-9853.63980238,0.00025,2]
[341726711,1731150568219,-10000.0,0.00025,2]
[341726712,1731150568240,-10000.0,0.00025,2]
[341726713,1731150568261,-10000.0,0.00025,2]
[341726714,1731150568557,-10000.0,0.00025,2]
[341726715,1731150568601,-10000.0,0.00025,2]
[341726716,1731150568625,-10000.0,0.00025,2]
[341726717,1731150568647,-7263.41732778,0.00025,2]
[341726718,1731150569098,-2736.58267222,0.00025,2]
[341726719,1731150569119,-5440.7264,0.00025,2]
[341726720,1731150569139,-991.0,0.00025043,2]
[341726721,1731150569160,-268.02,0.00025693,2]
[341726722,1731150622285,157.67,0.00015342,2]
[341726726,1731150632607,-2079.33,0.00026271,2]
[341726727,1731150632830,-250.0,0.00026273,2]
[341726728,1731150632839,-500.0,0.000263,7]
[341726729,1731150632849,-234.50350205,0.000263,7]
[341726732,1731150632861,-265.49649795,0.000263,7]
[341726734,1731150632870,-715.21,0.00026332,2]
[341726736,1731150632879,-250.0,0.00026339,2]
[341726738,1731150632889,-150.0,0.00026356,2]
[341726740,1731150632898,-2210.67,0.00026363,2]
[341726742,1731150632907,-154.34,0.00026366,2]
[341726743,1731150632916,-1709.53634904,0.0002637,2]
[341726746,1731150638389,-508.48677158,0.0002637,2]
[341726796,1731150640290,-150.25687938,0.0002637,2]
[341726797,1731150640299,-443.95,0.00026418,2]
[341726798,1731150640309,-213.79,0.00026532,2]
[341726799,1731150640318,-30.69205243,0.00026551,2]
[341726800,1731150640545,-506.04717724,0.00026551,2]
[341726801,1731150640557,-463.26077033,0.00026551,2]
[341726802,1731150640566,-669.07,0.00026584,2]
[341726803,1731150640576,-168.84,0.00026648,2]
[341726804,1731150640586,-162.05,0.00026648,2]
[341726805,1731150640595,-4183.76997464,0.0002668,2]
[341726833,1731150644302,-97265.54002536,0.0002668,2]
[341726834,1731150644312,-2079.33,0.00026693,2]
[341726835,1731150644324,-160.57,0.00026704,2]
[341726836,1731150644334,-169.38,0.00026775,30]
[341726837,1731150644344,-160.57,0.00026971,2]
[341726838,1731150644354,-2079.33,0.00027115,2]
[341726839,1731150644363,-250.0,0.00027148,2]
[341726840,1731150644374,-706.8,0.00027289,15]
[341726841,1731150644384,-991.0,0.00027306,2]
[341726842,1731150644394,-336.32,0.0002736,120]
[341726843,1731150644405,-200.0,0.00027397,7]
[341726844,1731150644415,-485.49,0.00027397,10]
[341726845,1731150644425,-167.91,0.00027473,2]
[341726846,1731150644435,-2079.33,0.00027537,2]
[341726847,1731150644446,-200.0,0.000276,10]
[341726848,1731150644458,-440.33,0.00027671,2]
[341726849,1731150644468,-362.09,0.00027671,2]
[341726850,1731150644479,-432.91,0.00027671,2]
[341726851,1731150644489,-432.91,0.00027671,2]
[341726852,1731150644499,-181.89,0.00027671,2]
[341726853,1731150644509,-500.0,0.000277,10]
[341726854,1731150644519,-443.95,0.00027739,2]
[341726855,1731150644529,-158.916,0.000278,2]
[341726856,1731150644540,-700.0,0.000278,10]
[341726857,1731150644550,-1750.91753114,0.00027899,2]
[341726858,1731150644560,-1000.0,0.000279,10]
[341726859,1731150644570,-500.0,0.00027944,7]
[341726860,1731150644579,-500.0,0.00027944,7]
[341726861,1731150644588,-2079.33,0.00027959,2]
[341726862,1731150644598,-1990.0,0.00027999,2]
[341726863,1731150644607,-559.0,0.00027999,2]
[341726864,1731150644617,-1922.0,0.00027999,2]
[341726865,1731150644626,-814.0,0.00027999,2]
[341726866,1731150644637,-814.576,0.00027999,2]
[341726867,1731150644647,-1258.0,0.00027999,2]
[341726868,1731150644658,-2909.0,0.00027999,2]
[341726869,1731150644669,-3464.0,0.00027999,2]
[341726870,1731150644680,-9963.26931727,0.00028,2]
[341726871,1731150644690,-162.12719327,0.00028073,5]
[341726872,1731150644701,-75591.89542661,0.00028078,2]
[341726873,1731150644712,-1000.0,0.00028079,2]
[341726874,1731150644723,-1096.4477,0.0002808,2]
[341726875,1731150644734,-12190.545,0.0002808,2]
[341726876,1731150644745,-10138.657,0.0002808,2]
[341726877,1731150644755,-10663.0,0.00028096,2]
[341726878,1731150644766,-1750.91753106,0.00028136,2]
[341726879,1731150644776,-240.68798635,0.0002817,2]
[341726880,1731150644786,-160.43492646,0.00028173,5]
[341726881,1731150644796,-501.10221619,0.00028173,5]
[341726882,1731150644807,-500.0,0.00028179,2]
[341726883,1731150644817,-500.0,0.00028179,2]
[341726884,1731150644826,-500.0,0.00028179,2]
[341726885,1731150644836,-500.0,0.00028179,2]
[341726886,1731150644845,-500.0,0.00028179,2]
[341726887,1731150644855,-500.0,0.00028179,2]
[341726888,1731150644865,-500.0,0.00028179,2]
[341726889,1731150644875,-500.0,0.00028179,2]
[341726890,1731150644884,-323.64940051,0.00028179,2]
[341726891,1731150644893,-94035.7266,0.0002818,2]
[341726892,1731150644903,-500.0,0.0002818,2]
[341726893,1731150644913,-1000.0,0.0002818,2]
[341726894,1731150644923,-37864.4698,0.0002818,2]
[341726895,1731150644932,-357.7661,0.0002818,2]
[341726896,1731150644942,-4314.0623,0.0002818,2]
[341726897,1731150644953,-33829.76781156,0.0002818,2]
[341726898,1731150645250,-416.10781024,0.0002818,2]
[341726903,1731150682897,926.58,0.00025488,2]
[341726904,1731150740613,150.0,0.00018123,2]
[341726905,1731150741544,172.7695,0.00020351,2]
[341726906,1731150743766,233.7885,0.00020351,2]
[341726907,1731150782285,150.55831955,0.00018123,2]
[341726908,1731150783221,803.448,0.00020573,2]
[341726909,1731150784919,151.14375,0.00020573,2]
[341726910,1731150841552,300.0,0.00019725,2]
[341726912,1731150901259,300.0,0.00019725,2]
[341726913,1731151021438,300.0,0.00019725,2]
[341726914,1731151081246,300.0,0.00019725,2]
[341726915,1731151142200,-165.79,0.00026035,2]
[341726916,1731151142231,-500.0,0.000263,7]
[341726917,1731151142568,-1000.0,0.00026382,2]
[341726918,1731151142597,-163.74,0.00026382,2]
[341726919,1731151142625,-1008.16379949,0.00026521,2]
[341726920,1731151142653,-306.72,0.00026548,2]
[341726921,1731151142680,-2850.46392203,0.00026548,2]
[341726922,1731151142707,-200.0,0.00026548,2]
[341726923,1731151142734,-2171.03,0.00026582,2]
[341726924,1731151142762,-161.94,0.00026598,2]
[341726925,1731151142790,-893.74,0.00026693,2]
[341726926,1731151142816,-313.44,0.00026697,2]
[341726927,1731151142844,-15983.45,0.0002673,2]
[341726928,1731151142871,-180.53,0.000269,2]
[341726929,1731151142899,-166.1,0.00026916,30]
[341726930,1731151142925,-164.47,0.00026941,2]
[341726931,1731151142952,-152.0,0.00026981,3]
[341726932,1731151142981,-352.54,0.00026994,2]
[341726933,1731151143215,230.0,0.00019725,2]
[341726934,1731151143303,367.7,0.00026548,2]
[341726936,1731151176402,170.8,0.00026952,2]
[341726937,1731151180314,-1501.45,0.00027033,2]
[341726938,1731151180342,-893.74,0.00027122,2]
[341726939,1731151180370,-151.85,0.00027124,2]
[341726940,1731151180396,-3201.1,0.00027124,2]
[341726941,1731151180423,-151.85,0.00027395,2]
[341726942,1731151180450,-250.0,0.00027436,2]
[341726943,1731151180476,-898.83798422,0.00027527,2]
[341726944,1731151180503,-32601.0,0.00027537,2]
[341726945,1731151180531,-893.74,0.00027551,2]
[341726946,1731151180558,-167.27,0.00027614,2]
[341726947,1731151180584,-926.58,0.00027751,2]
[341726948,1731151180609,-2373.2361,0.0002788,2]
[341726949,1731151180636,-2889.63883065,0.000279,2]
[341726950,1731151180662,-500.0,0.00027944,7]
[341726951,1731151180689,-580.67,0.00027969,10]
[341726952,1731151180715,-279.8373,0.00027979,2]
[341726953,1731151180742,-1677.37339294,0.00027979,2]
[341726954,1731151180768,-3061.82639219,0.00027979,2]
[341726957,1731151507630,5076.07608432,0.00016,2]
[341726958,1731151507654,4672.0,0.00016,2]
[341726959,1731151507686,10000.0,0.00016,2]
[341726960,1731151507727,10000.0,0.00016,2]
[341726961,1731151507750,10000.0,0.00016,2]
[341726962,1731151507773,10000.0,0.00016,2]
[341726963,1731151507795,10000.0,0.00016,2]
[341726964,1731151507830,10000.0,0.00016,2]
[341726965,1731151507858,10000.0,0.00016,2]